bitfinex/quotes_SOLUSD_20251001
["timestamp","ask_amount","ask_price","bid_price","bid_amount"]
[1759309680041,0.71,216.82,216.79,35.78]
[1759309680231,0.71,216.81,216.79,35.78]
[1759309680424,0.71,216.8,216.79,35.78]
[1759309680838,0.71,216.8,216.79,38.45055127]
[1759309681037,0.71,216.82,216.79,38.45055127]
[1759309681249,4.61169525,216.84,216.81,2.67055127]
[1759309681456,16.14093339,216.84,216.82,35.78]
[1759309681666,2.67055127,216.83,216.74,35.96]
[1759309681865,16.14093339,216.84,216.74,35.96]
[1759309681866,2.67055127,216.81,216.75,35.78]
[1759309682031,2.67055127,216.78,216.74,35.96]
[1759309682237,0.71,216.77,216.75,35.76]
[1759309682437,0.71,216.76,216.75,35.76]
[1759309682834,0.71,216.76,216.74,35.96]
[1759309683076,2.67055127,216.76,216.75,35.76]
[1759309683287,4.61291601,216.79,216.75,38.43055127]
[1759309683573,4.61291601,216.79,216.76,2.67055127]
[1759309683574,0.71,216.78,216.76,2.67055127]
[1759309683746,4.61291601,216.79,216.77,35.76]
[1759309683747,16.14481323,216.79,216.77,35.76]
[1759309684367,5.32297167,216.78,216.77,35.76]
[1759309684579,7.99352294,216.78,216.77,35.76]
[1759309684876,7.99352294,216.78,216.64,35.98]
[1759309684877,19.52595213,216.78,216.64,35.98]
[1759309685168,2.67055127,216.71,216.64,35.98]
[1759309685371,0.71,216.73,216.7,2.67055127]
[1759309685571,0.71,216.73,216.72,2.67055127]
[1759309685775,0.71,216.76,216.72,2.67055127]
[1759309685960,0.71,216.75,216.74,2.67055127]
[1759309686155,0.71,216.8,216.74,2.67055127]
[1759309686460,0.71,216.8,216.79,2.67055127]
[1759309686461,5.32254612,216.8,216.79,2.67055127]
[1759309686663,5.32254612,216.8,216.79,35.74]
[1759309687045,0.71,216.8,216.79,38.41055127]
[1759309687245,0.71,216.8,216.79,35.74]
[1759309687456,0.71,216.8,216.79,38.41055127]
[1759309687653,0.71,216.83,216.79,38.41055127]
[1759309687979,0.71,216.82,216.8,2.67055127]
[1759309688151,0.71,216.81,216.79,35.74]
[1759309688348,4.21,216.8,216.79,35.74]
[1759309688551,4.21,216.8,216.79,43.02331016]
[1759309688552,3.5,216.8,216.79,43.02331016]
[1759309689082,0.1,216.85,216.82,20.8]
[1759309689254,0.1,216.85,216.84,2.67055127]
[1759309689578,0.1,216.85,216.78,20.8]
[1759309689744,0.1,216.85,216.81,2.67055127]
[1759309689745,0.71,216.84,216.81,2.67055127]
[1759309689955,0.71,216.83,216.82,35.72]
[1759309690164,0.71,216.83,216.69,0.28432314]
[1759309690362,0.71,216.82,216.75,2.67055127]
[1759309690677,5.32233337,216.81,216.76,35.72]
[1759309690878,0.71,216.8,216.77,2.67055127]
[1759309691374,4.61233337,216.81,216.76,35.72]
[1759309691375,0.71,216.79,216.76,35.72]
[1759309691669,4.61233337,216.81,216.76,35.72]
[1759309691670,0.71,216.78,216.76,35.72]
[1759309691876,18.81371808,216.81,216.76,35.72]
[1759309691877,0.71,216.77,216.76,35.72]
[1759309692349,16.14316681,216.81,216.76,35.72]
[1759309692674,0.71,216.8,216.78,2.67055127]
[1759309692879,0.71,216.8,216.79,35.7]
[1759309693279,16.14093339,216.84,216.79,35.7]
[1759309693452,0.71,216.83,216.79,35.7]
[1759309693775,0.71,216.82,216.79,35.7]
[1759309693975,0.71,216.81,216.79,35.7]
[1759309694363,0.71,216.8,216.79,35.7]
[1759309694773,4.61254253,216.81,216.79,35.7]
[1759309694970,5.32254253,216.81,216.79,35.7]
[1759309695370,4.61254253,216.81,216.79,35.7]
[1759309695674,4.61254253,216.81,216.8,2.67055127]
[1759309696166,0.71,216.83,216.8,2.67055127]
[1759309696372,0.1,216.85,216.8,2.67055127]
[1759309696558,0.1,216.85,216.79,35.7]
[1759309696559,5.42156659,216.85,216.82,2.67055127]
[1759309696875,4.71156659,216.85,216.84,2.67055127]
[1759309697091,4.71156659,216.85,216.84,38.35055127]
[1759309697681,5.42156659,216.85,216.84,35.68]
[1759309698068,16.95027306,216.85,216.78,20.8]
[1759309698264,0.71,216.84,216.78,23.47055127]
[1759309698461,0.1,216.85,216.82,2.67055127]
[1759309698663,0.71,216.84,216.82,2.67055127]
[1759309698887,0.71,216.83,216.78,20.8]
[1759309699088,0.71,216.82,216.75,35.98]
[1759309699286,0.71,216.82,216.76,35.66]
[1759309699478,0.71,216.81,216.76,35.66]
[1759309699653,0.71,216.8,216.76,35.66]
[1759309699853,0.71,216.83,216.76,35.66]
[1759309700086,0.71,216.83,216.77,2.67055127]
[1759309700280,0.71,216.83,216.78,1.05597446]
[1759309700477,0.71,216.83,216.79,35.66]
[1759309700773,0.71,216.82,216.79,35.66]
[1759309701156,0.71,216.81,216.79,35.66]
[1759309701581,16.24019044,216.85,216.79,35.66]
[1759309701799,0.71,216.84,216.79,35.66]
[1759309701975,0.71,216.83,216.79,35.66]
[1759309702493,0.71,216.82,216.79,35.66]
[1759309702661,5.32233337,216.81,216.79,35.66]
[1759309702866,4.61233337,216.81,216.79,35.66]
[1759309703087,0.71,216.8,216.79,35.66]
[1759309704273,1.76597446,216.8,216.79,35.66]
[1759309704458,15.36156847,216.8,216.75,35.98]
[1759309704680,4.61297167,216.78,216.75,35.98]
[1759309704870,0.72,216.77,216.75,35.98]
[1759309705071,0.72,216.76,216.75,35.98]
[1759309705584,16.14540086,216.78,216.75,35.98]
[1759309705585,4.61297167,216.78,216.75,37.03597446]
[1759309705763,4.61297167,216.78,216.76,35.62]
[1759309706156,4.61297167,216.78,216.77,1.05597446]
[1759309706352,5.33297167,216.78,216.76,35.62]
[1759309706555,0.72,216.77,216.76,35.62]
[1759309706776,5.33318448,216.77,216.76,35.62]
[1759309707264,0.72,216.81,216.76,35.62]
[1759309707476,11.53068336,216.82,216.78,1.05597446]
[1759309707795,0.72,216.81,216.79,35.6]
[1759309707955,0.72,216.8,216.79,35.6]
[1759309708288,11.53068336,216.82,216.79,35.6]
[1759309708581,0.72,216.81,216.79,35.6]
[1759309708790,4.61254612,216.8,216.79,35.6]
[1759309708968,11.53068336,216.82,216.75,35.98]
[1759309709170,0.1,216.85,216.75,35.98]
[1759309709171,0.72,216.8,216.75,35.98]
[1759309709485,0.72,216.8,216.62,24.16611141]
[1759309709486,1.05597446,216.77,216.66,1.05597446]
[1759309709671,1.05597446,216.75,216.66,1.05597446]
[1759309709992,0.72,216.74,216.66,1.05597446]
[1759309710673,16.14912563,216.73,216.67,35.58]
[1759309711384,3.5,216.71,216.67,35.58]
[1759309711592,0.72,216.7,216.67,35.58]
[1759309712091,3.5,216.71,216.69,1.05597446]
[1759309712292,3.5,216.71,216.67,35.58]
[1759309712477,3.5,216.71,216.69,2.67366971]
[1759309712988,8.11451649,216.71,216.69,2.67366971]
[1759309714091,3.5,216.71,216.7,2.67366971]
[1759309714896,3.5,216.71,216.7,23.47366971]
[1759309715085,4.61393096,216.74,216.7,23.47366971]
[1759309715269,4.61318448,216.77,216.73,2.67366971]
[1759309715476,4.61318448,216.77,216.75,2.67366971]
[1759309715797,4.61318448,216.77,216.76,35.56]
[1759309716283,5.33318448,216.77,216.76,35.56]
[1759309716594,19.53981539,216.77,216.68,2.67366971]
[1759309716892,16.14838054,216.74,216.69,35.56]
[1759309717099,0.72,216.73,216.69,35.56]
[1759309717297,0.72,216.72,216.69,35.56]
[1759309717674,16.14838054,216.74,216.69,35.56]
[1759309717973,0.72,216.73,216.69,38.23366971]
[1759309718687,4.61382301,216.74,216.69,38.23366971]
[1759309718879,4.61361014,216.75,216.7,2.67366971]
[1759309719312,0.72,216.77,216.7,2.67366971]
[1759309719478,4.61337139,216.77,216.72,2.67366971]
[1759309719677,0.72,216.83,216.76,2.67366971]
[1759309719967,0.72,216.83,216.77,35.54]
[1759309720372,0.72,216.82,216.77,35.54]
[1759309720588,0.72,216.81,216.77,35.54]
[1759309720794,0.72,216.8,216.77,35.54]
[1759309721004,4.61275889,216.79,216.77,38.21366971]
[1759309721405,5.33275889,216.79,216.77,35.54]
[1759309721902,0.72,216.78,216.69,20.8]
[1759309722204,0.72,216.78,216.73,23.47366971]
[1759309722505,0.72,216.78,216.74,35.52]
[1759309722676,0.72,216.78,216.75,2.67366971]
[1759309722991,0.72,216.77,216.74,35.52]
[1759309723300,0.72,216.79,216.74,35.52]
[1759309723489,0.72,216.78,216.74,35.52]
[1759309724076,2.67366971,216.8,216.74,35.52]
[1759309724278,0.72,216.77,216.74,35.52]
[1759309725399,4.6133973,216.76,216.74,35.52]
[1759309726675,13.59559401,216.79,216.75,2.67366971]
[1759309726880,14.31559401,216.79,216.75,2.67366971]
[1759309727089,18.92856125,216.79,216.75,2.67366971]
[1759309727513,5.33296724,216.79,216.75,2.67366971]
[1759309727808,5.33296724,216.79,216.76,2.67366971]
[1759309727809,4.61296724,216.79,216.76,2.67366971]
[1759309727984,0.72,216.78,216.77,35.5]
[1759309728384,4.61296724,216.79,216.77,35.5]
[1759309729011,13.59559401,216.81,216.77,38.17366971]
[1759309729203,18.20750195,216.83,216.77,38.17366971]
[1759309729387,29.73727181,216.83,216.77,38.17366971]
[1759309730191,4.61190794,216.83,216.79,2.67366971]
[1759309730405,5.33171099,216.84,216.8,35.48]
[1759309730705,0.1,216.85,216.83,23.47366971]
[1759309730906,0.1,216.85,216.84,35.48]
[1759309731296,0.1,216.85,216.81,20.8]
[1759309731478,0.1,216.85,216.84,23.47366971]
[1759309732215,0.1,216.85,216.84,20.8]
[1759309732216,4.71148259,216.85,216.84,20.8]
[1759309733094,0.1,216.85,216.83,1.05548536]
[1759309733299,4.71148854,216.85,216.83,1.05548536]
[1759309733809,0.67,216.84,216.83,1.05548536]
[1759309733983,4.71150074,216.85,216.83,36.51548536]
[1759309734189,4.71150074,216.85,216.84,2.66985646]
[1759309734393,4.71150074,216.85,216.83,35.46]
[1759309734394,5.38150074,216.85,216.83,35.46]
[1759309734603,5.38150074,216.85,216.79,2.66985646]
[1759309734604,0.67,216.84,216.79,2.66985646]
[1759309734793,0.67,216.83,216.8,35.44]
[1759309735004,0.67,216.82,216.8,35.44]
[1759309735208,16.24020721,216.85,216.8,35.44]
[1759309735408,0.67,216.84,216.8,35.44]
[1759309735639,0.67,216.83,216.8,35.44]
[1759309735803,16.24020721,216.85,216.8,35.44]
[1759309735804,0.67,216.82,216.8,35.44]
[1759309736003,0.67,216.81,216.8,35.44]
[1759309736731,0.67,216.81,216.76,2.66985646]
[1759309736935,0.67,216.8,216.77,35.44]
[1759309737104,0.67,216.79,216.78,35.44]
[1759309737300,0.67,216.82,216.78,35.44]
[1759309737495,2.66985646,216.84,216.78,35.44]
[1759309737496,16.1416778,216.83,216.78,35.44]
[1759309737804,16.1410351,216.84,216.81,2.66985646]
[1759309738010,0.1,216.85,216.78,35.44]
[1759309738011,4.7116328,216.85,216.83,2.66985646]
[1759309738199,4.7116328,216.85,216.84,2.66985646]
[1759309738405,4.7116328,216.85,216.82,35.42]
[1759309738826,4.7116328,216.85,216.7,23.29371133]
[1759309738827,4.68048852,216.84,216.77,4.01048852]
[1759309739000,0.67,216.84,216.79,4.01048852]
[1759309739208,0.67,216.84,216.8,4.01048852]
[1759309739738,4.61190794,216.83,216.82,4.01048852]
[1759309739896,4.61190794,216.83,216.82,39.43048852]
[1759309740302,4.61190794,216.83,216.82,35.42]
[1759309741139,5.28190794,216.83,216.82,35.42]
[1759309742129,4.71167039,216.85,216.82,35.42]
[1759309742426,0.67,216.84,216.82,35.42]
[1759309742938,0.67,216.83,216.82,35.42]
[1759309743125,16.24037686,216.85,216.82,35.42]
[1759309743433,16.91037686,216.85,216.82,35.42]
[1759309743733,0.67,216.84,216.82,35.42]
[1759309744109,16.24037686,216.85,216.82,35.42]
[1759309744305,0.67,216.83,216.82,35.42]
[1759309744534,13.59559401,216.82,216.71,20.8]
[1759309744707,4.01048852,216.8,216.72,4.01048852]
[1759309745002,0.67,216.79,216.74,4.01048852]
[1759309745204,13.59559401,216.84,216.78,4.01048852]
[1759309745402,5.38167039,216.85,216.79,4.01048852]
[1759309745629,16.91037686,216.85,216.79,4.01048852]
[1759309745841,4.71167039,216.85,216.83,4.01048852]
[1759309746047,4.71167039,216.85,216.84,35.38]
[1759309746223,5.38167039,216.85,216.84,35.38]
[1759309746422,16.24037686,216.85,216.84,35.38]
[1759309746736,4.71148259,216.85,216.84,39.39048852]
[1759309747037,4.71148259,216.85,216.84,35.38]
[1759309747246,5.38148259,216.85,216.84,35.38]
[1759309747412,4.71148259,216.85,216.84,35.38]
[1759309747842,16.24018906,216.85,216.84,35.38]
[1759309749437,16.24018906,216.85,216.84,39.39048852]
[1759309749438,0.1,216.85,216.84,39.39048852]
[1759309752547,0.1,216.85,216.84,35.34]
[1759309752718,0.1,216.85,216.84,39.35048852]
[1759309753753,0.1,216.85,216.84,35.34]
[1759309754121,4.71148259,216.85,216.84,35.34]
[1759309754450,16.91018906,216.85,216.79,4.01048852]
[1759309754645,16.91018906,216.85,216.8,39.35048852]
[1759309754949,0.67,216.84,216.81,35.32]
[1759309755122,0.67,216.83,216.81,35.32]
[1759309755512,16.91018906,216.85,216.81,35.32]
[1759309755713,0.67,216.84,216.81,35.32]
[1759309755914,4.61190794,216.83,216.81,35.32]
[1759309756141,0.67,216.84,216.81,35.32]
[1759309756446,0.1,216.85,216.81,35.32]
[1759309756647,0.1,216.85,216.83,4.01048852]
[1759309756950,4.71148259,216.85,216.84,35.32]
[1759309757517,5.38148259,216.85,216.84,35.32]
[1759309757752,0.1,216.85,216.84,35.32]
[1759309758124,0.1,216.85,216.84,39.33048852]
[1759309758626,0.1,216.85,216.84,43.94218377]
[1759309759956,0.1,216.85,216.84,35.32]
[1759309760252,0.1,216.85,216.84,39.31048852]
[1759309763457,0.1,216.85,216.84,35.3]
[1759309763658,0.1,216.85,216.84,39.31048852]
[1759309764156,0.1,216.85,216.84,43.92218377]
[1759309765561,0.1,216.85,216.84,35.3]
[1759309765762,0.1,216.85,216.84,39.31048852]
[1759309766055,0.1,216.85,216.84,39.27048852]
[1759309768168,0.82,216.85,216.84,39.27048852]
[1759309768470,0.82,216.85,216.84,35.24]
[1759309768632,5.43148259,216.85,216.84,35.24]
[1759309775436,13.59559401,216.84,216.77,35.98]
[1759309775743,2.36955446,216.83,216.78,35.2]
[1759309775947,13.59559401,216.84,216.78,35.2]
[1759309775948,13.59559401,216.84,216.8,1.64955446]
[1759309776156,4.61212065,216.82,216.81,35.2]
[1759309776435,4.61212065,216.82,216.81,36.84955446]
[1759309776735,5.33169525,216.84,216.81,36.84955446]
[1759309777155,0.1,216.85,216.83,1.64955446]
[1759309777156,4.71151342,216.85,216.83,1.64955446]
[1759309777363,4.71151342,216.85,216.84,36.84955446]
[1759309778266,0.1,216.85,216.84,36.84955446]
[1759309778836,5.43148259,216.85,216.84,35.2]
[1759309779036,4.71148259,216.85,216.84,36.84955446]
[1759309779548,0.1,216.85,216.84,36.84955446]
[1759309780942,0.1,216.85,216.84,36.82955446]
[1759309780943,4.71148259,216.85,216.84,36.82955446]
[1759309781645,0.1,216.85,216.84,36.82955446]
[1759309782581,4.71148259,216.85,216.84,36.82955446]
[1759309782739,0.1,216.85,216.84,36.82955446]
[1759309783440,16.96018906,216.85,216.77,35.98]
[1759309783653,0.82,216.85,216.81,1.64955446]
[1759309783848,0.82,216.85,216.82,35.16]
[1759309783849,0.1,216.85,216.82,35.16]
[1759309784048,0.1,216.85,216.84,1.64955446]
[1759309785538,4.71148259,216.85,216.84,1.64955446]
[1759309786258,4.71148259,216.85,216.83,35.16]
[1759309786457,4.71148259,216.85,216.84,1.64955446]
[1759309786671,0.1,216.85,216.84,1.64955446]
[1759309786980,5.43148259,216.85,216.84,1.64955446]
[1759309787143,5.43148259,216.85,216.84,35.14]
[1759309787144,16.96018906,216.85,216.84,35.14]
[1759309788495,30.55578307,216.85,216.84,35.14]
[1759309788668,32.20533753,216.85,216.84,35.14]
[1759309788983,30.55578307,216.85,216.84,35.14]
[1759309789562,16.96018906,216.85,216.84,35.14]
[1759309790489,30.55578307,216.85,216.84,35.14]
[1759309790785,30.13610807,216.85,216.84,35.14]
[1759309791372,13.59559401,216.84,216.73,35.96]
[1759309791668,0.72,216.83,216.77,1.64955446]
[1759309791898,13.59559401,216.84,216.77,1.64955446]
[1759309792077,0.72,216.82,216.77,1.64955446]
[1759309792275,0.72,216.81,216.78,1.64955446]
[1759309792700,13.59559401,216.84,216.79,36.76955446]
[1759309792863,0.72,216.83,216.8,1.64955446]
[1759309793059,13.59559401,216.84,216.79,35.12]
[1759309793060,16.86242228,216.82,216.79,35.12]
[1759309793389,0.71,216.81,216.79,36.76955446]
[1759309793762,4.61212065,216.82,216.8,1.64955446]
[1759309793969,0.71,216.81,216.79,35.12]
[1759309794168,16.14242228,216.82,216.79,35.12]
[1759309794417,0.71,216.8,216.79,36.76955446]
[1759309795292,11.53030163,216.82,216.79,36.76955446]
[1759309795588,0.71,216.81,216.79,35.12]
[1759309795801,15.95514847,216.8,216.79,35.12]
[1759309796007,14.30559401,216.8,216.79,35.12]
[1759309796497,15.95514847,216.8,216.73,37.60955446]
[1759309796698,14.30559401,216.82,216.76,1.64955446]
[1759309797003,4.61190794,216.83,216.76,20.8]
[1759309797189,4.61190794,216.83,216.81,1.64955446]
[1759309797376,29.7365274,216.84,216.81,1.64955446]
[1759309797579,0.71,216.83,216.82,35.1]
[1759309799194,14.30559401,216.83,216.82,35.1]
[1759309799713,18.91750195,216.83,216.82,35.1]
[1759309800585,19.9735961,216.83,216.82,35.1]
[1759309800786,13.59559401,216.82,216.76,21.85609415]
[1759309801008,14.30559401,216.82,216.77,35.08]
[1759309801212,0.71,216.81,216.77,35.08]
[1759309801406,0.71,216.81,216.77,36.13609415]
[1759309801790,4.61254612,216.8,216.77,36.13609415]
[1759309801993,5.32254612,216.8,216.77,36.13609415]
[1759309802204,16.85391143,216.8,216.77,35.08]
[1759309802982,16.85391143,216.8,216.77,36.13609415]
[1759309803588,13.59559401,216.83,216.79,1.05609415]
[1759309803787,11.52964204,216.84,216.81,1.05609415]
[1759309804019,11.52964204,216.84,216.82,35.06]
[1759309804195,12.23964204,216.84,216.82,35.06]
[1759309804790,18.20686395,216.86,216.83,1.05609415]
[1759309804791,18.91686395,216.86,216.83,1.05609415]
[1759309804994,4.61126994,216.86,216.84,1.05609415]
[1759309805193,16.13944479,216.86,216.83,1.05609415]
[1759309805400,0.71,216.85,216.82,35.06]
[1759309805715,4.61169525,216.84,216.82,35.06]
[1759309805886,0.71,216.83,216.76,20.8]
[1759309806086,16.14093339,216.84,216.8,1.05609415]
[1759309806293,16.14093339,216.84,216.82,1.05609415]
[1759309806513,16.14093339,216.84,216.83,35.04]
[1759309806722,16.85093339,216.84,216.83,35.04]
[1759309808004,13.59559401,216.83,216.76,20.8]
[1759309808236,1.05609415,216.81,216.73,35.96]
[1759309808520,13.59559401,216.79,216.73,35.96]
[1759309808694,0.71,216.78,216.73,35.96]
[1759309808892,0.71,216.77,216.73,35.96]
[1759309809204,13.59559401,216.83,216.74,35.02]
[1759309809412,1.76609415,216.82,216.75,1.05609415]
[1759309809710,13.59559401,216.83,216.78,1.05609415]
[1759309809901,13.59559401,216.81,216.79,35.02]
[1759309810420,16.14242228,216.82,216.79,36.07609415]
[1759309810421,4.61212065,216.82,216.79,36.07609415]
[1759309810621,16.14242228,216.82,216.79,36.07609415]
[1759309811110,16.85242228,216.82,216.79,35.02]
[1759309812688,11.52836967,216.86,216.8,1.05609415]
[1759309812885,13.59559401,216.85,216.8,1.05609415]
[1759309813096,4.61126994,216.86,216.82,1.05609415]
[1759309813289,4.61126994,216.86,216.79,35.02]
[1759309813290,5.32126994,216.86,216.83,1.05609415]
[1759309813509,5.32126994,216.86,216.84,35.0]
[1759309813510,0.71,216.85,216.84,35.0]
[1759309814019,13.59559401,216.88,216.84,35.0]
[1759309814195,0.71,216.87,216.84,35.0]
[1759309814993,18.20648193,216.88,216.84,36.05609415]
[1759309815323,30.44359369,216.88,216.84,36.05609415]
[1759309816229,4.61088792,216.88,216.84,36.05609415]
[1759309820017,0.1,216.89,216.86,1.05609415]
[1759309820221,4.71074559,216.89,216.86,1.05609415]
[1759309820396,4.71074559,216.89,216.84,35.0]
[1759309820397,0.1,216.89,216.87,1.05609415]
[1759309820833,0.1,216.89,216.84,35.0]
[1759309820999,4.71069203,216.89,216.84,35.0]
[1759309821204,4.71068115,216.89,216.85,1.05609415]
[1759309821405,0.67,216.88,216.83,1.05609415]
[1759309821717,4.71068115,216.89,216.84,34.96]
[1759309821718,0.67,216.87,216.84,34.96]
[1759309821944,5.7667753,216.89,216.84,34.96]
[1759309821945,0.67,216.86,216.84,34.96]
[1759309822115,16.90726144,216.89,216.84,34.96]
[1759309822302,5.38068115,216.89,216.84,36.01609415]
[1759309822498,0.1,216.89,216.86,1.05609415]
[1759309822808,4.71066165,216.89,216.85,1.05609415]
[1759309823114,4.71066165,216.89,216.84,34.96]
[1759309823115,0.67,216.88,216.84,34.96]
[1759309823317,16.23724194,216.89,216.84,34.96]
[1759309823515,0.1,216.89,216.84,34.96]
[1759309823711,0.1,216.89,216.88,1.05609415]
[1759309823911,0.1,216.89,216.88,35.99609415]
[1759309824298,0.1,216.89,216.88,34.94]
[1759309824531,4.71063211,216.89,216.88,34.94]
[1759309824716,0.1,216.89,216.88,34.94]
[1759309825316,0.1,216.89,216.88,35.99609415]
[1759309825913,4.71063211,216.89,216.88,35.99609415]
[1759309826116,4.71063211,216.89,216.88,34.94]
[1759309826439,0.1,216.89,216.88,34.94]
[1759309826637,0.1,216.89,216.88,35.99609415]
[1759309826930,4.71063211,216.89,216.88,35.99609415]
[1759309827535,0.1,216.89,216.88,35.99609415]
[1759309828231,4.71063211,216.89,216.88,34.94]
[1759309828615,0.1,216.89,216.88,35.99609415]
[1759309829010,0.1,216.89,216.88,34.94]
[1759309829205,0.1,216.89,216.88,35.99609415]
[1759309829418,0.1,216.89,216.88,40.60693885]
[1759309829616,0.1,216.89,216.88,54.20253286]
[1759309832443,1.05609415,217.03,216.88,54.20253286]
[1759309832444,0.67,217.02,216.92,20.8]
[1759309832651,0.67,217.02,216.96,20.8]
[1759309832937,0.67,217.02,216.99,1.05609415]
[1759309832938,5.2778772,217.02,216.99,1.05609415]
[1759309833126,0.67,217.02,216.99,34.88]
[1759309833446,0.67,217.02,216.88,43.90086524]
[1759309833447,5.37829493,217.0,216.92,20.8]
[1759309833750,0.67,216.99,216.94,1.05609415]
[1759309834040,0.67,216.98,216.94,1.05609415]
[1759309834214,5.27902378,216.97,216.95,1.05609415]
[1759309834414,5.27902378,216.97,216.96,34.88]
[1759309836963,4.60902378,216.97,216.96,34.88]
[1759309837145,4.60902378,216.97,216.96,35.93609415]
[1759309837549,4.60870532,216.99,216.96,35.93609415]
[1759309837759,4.60870532,216.99,216.98,1.05609415]
[1759309837939,4.60870532,216.99,216.96,34.88]
[1759309838124,0.1,217.0,216.98,1.05609415]
[1759309838329,4.70830965,217.0,216.99,34.84]
[1759309838542,4.70830965,217.0,216.99,35.89609415]
[1759309838757,0.1,217.0,216.99,35.89609415]
[1759309842139,4.70829493,217.0,216.99,34.84]
[1759309842333,5.37829493,217.0,216.99,34.82]
[1759309842637,16.89903225,217.0,216.99,34.82]
[1759309842844,5.37829493,217.0,216.99,34.82]
[1759309844648,4.70829493,217.0,216.98,1.05609415]
[1759309844949,4.70829493,217.0,216.95,20.8]
[1759309844950,4.70829493,217.0,216.99,34.8]
[1759309845156,30.88072041,217.0,216.86,39.69231648]
[1759309845449,1.05609415,216.96,216.88,1.05609415]
[1759309845623,0.67,216.95,216.89,20.8]
[1759309845827,0.67,216.94,216.86,35.96]
[1759309846129,0.67,216.93,216.87,1.05609415]
[1759309846321,4.61020699,216.91,216.88,34.8]
[1759309846751,5.28020699,216.91,216.88,35.85609415]
[1759309847026,1.05609415,216.96,216.9,1.05609415]
[1759309847027,0.67,216.94,216.9,1.05609415]
[1759309847238,0.67,216.93,216.91,34.8]
[1759309847442,11.52318277,216.96,216.92,34.8]
[1759309847443,12.57927692,216.96,216.92,34.8]
[1759309847640,11.52318277,216.96,216.93,34.8]
[1759309847864,12.57927692,216.96,216.94,34.8]
[1759309848036,0.67,216.95,216.94,34.8]
[1759309848558,5.27935699,216.95,216.94,34.8]
[1759309848766,5.27935699,216.95,216.78,3.62961921]
[1759309848767,40.90562859,216.95,216.77,5.81853286]
[1759309849066,40.90562859,216.95,216.66,17.54240482]
[1759309849067,13.59559401,216.77,216.66,17.54240482]
[1759309849227,13.59559401,216.77,216.66,13.85041551]
[1759309849228,1.05609415,216.73,216.66,13.85041551]
[1759309849757,13.59559401,216.73,216.66,0.7]
[1759309849929,13.59559401,216.73,216.67,27.3]
[1759309850537,4.61446172,216.71,216.67,27.3]
[1759309851262,5.28446172,216.71,216.67,27.3]
[1759309851591,2.67407423,216.68,216.62,0.2]
[1759309851875,0.67,216.7,216.63,34.8]
[1759309851876,2.67407423,216.65,216.63,34.8]
[1759309852050,13.59559401,216.66,216.63,34.8]
[1759309852641,4.61573967,216.65,216.63,34.8]
[1759309852843,0.67,216.66,216.63,34.8]
[1759309853036,5.28558154,216.66,216.63,34.8]
[1759309853758,0.67,216.66,216.63,34.8]
[1759309853960,5.28564198,216.66,216.63,34.8]
[1759309854139,0.67,216.66,216.63,34.8]
[1759309854344,0.69,216.7,216.64,2.67407423]
[1759309854552,13.59559401,216.69,216.65,2.67407423]
[1759309854750,3.5,216.66,216.64,2.67407423]
[1759309854955,13.59559401,216.65,216.62,0.2]
[1759309855270,14.28559401,216.65,216.63,34.8]
[1759309855854,13.59559401,216.65,216.63,34.8]
[1759309856060,3.5,216.66,216.63,37.47407423]
[1759309856434,3.5,216.66,216.63,34.8]
[1759309856660,3.5,216.66,216.63,37.47407423]
[1759309857035,3.5,216.66,216.65,2.67407423]